{"text_format":"1","workbook":"xlsx","n_sheets":9,"sheets":["Instructivo","DEMANDA ANUAL","VOLUMEN DE QUEJAS","COSTO ADMINISTRACIÓN PÚBLICA","RESUMEN DE COSTOS AP","AUXILIAR COSTO ADMINISTRACIÓN","TIEMPO DE RESPUESTA","CANAL ATENCIÓN","RESUMEN"],"not_rendered":{"charts":0,"images":7,"macros":1,"external_links":0,"defined_names":0,"comments":6,"pivot_tables":0},"unopened":[],"bounds":{"document_bytes":16777216,"sheet_cells":100000,"rows_first":2000,"rows_last":500,"rows_between":2000,"halvings":0,"cell_chars":16384,"cell_head_chars":4096},"cells_cut":0,"cells_raw":0,"read":"whole","date_system":"1900"}

{"sheet":"Instructivo","index":0,"n_rows":70,"n_cols":1,"rows_kept":70,"cut":false,"hidden":false,"merged":[]}
["CRITERIO DE PRIORIZACIÓN DE TRÁMITES ADMINISTRATIVOS"]
["Instructivo"]
["Consideraciones generales"]
[]
["En las hojas “COSTO DE ADMINISTRACIÓN PÚBLICA”y “RESUMEN”  para añadir más trámites y que apliquen las fórmulas, se deberá seleccionar la primera fila y copiarla una por cada trámite de la entidad"]
[]
["Todas las hojas tienen columnas de color celeste, en las cuales NO deben ingresar valores ya que contienen fórmulas."]
["Para la carga en GOB.EC. La institución debe recordar que el peso máximo del archivo es de 2 MB."]
["Esquema de puntuación"]
["Para priorizar un trámite, se realizará un análisis de criterios básicos y adicionales basado en información que disponen las instituciones sujetas a esta norma técnica. Cada criterio será puntuado según los lineamientos presentes en esta norma."]
["a) Demanda Anual"]
["Considerará el volumen o frecuencia de las solicitudes que ingresan al año a cada institución para la gestión de un trámite en particular."]
["La identificación del volumen anual de los trámites se realizará a través de sus registros de transacciones y/o el número de visitas de consulta de información realizadas a través de páginas web institucionales."]
["Para realizar el registro realice lo siguiente:"]
["1.- Seleccione la hoja DEMANDA ANUAL"]
["2.- Ingrese los trámites de la institución registrando el identificador y nombre en las columnas respectivas.  "]
["3.- Para cada trámite debe especificar en la columna DEMANDA ANUAL el volumen o frecuencia anual, de acuerdo a lo mencionado anteriormente."]
["4.- Una vez terminado el llenado solicitado presione el botón PUNTUACIÓN, se ordenara de menor a mayor. "]
["5.- Usted visualizará el ordenamiento de los trámites ingresados de acuerdo al número de  volumen o frecuencia anual."]
["6.- Así mismo, usted visualizará el puntaje obtenido en la columna PUNTUACIÓN de acuerdo al grupo obtenido por cada trámite de acuerdo al número de volumen o frecuencia anual cosiderando lo siguiente: ** Primer grupo (trámites con menor demanda no incluye los trámites con demanda 0 ) = 3\n** Segundo grupo (trámites con demanda intermedia) = 6\n** Tercer grupo (trámites con mayor demanda) = 10"]
["Cada vez que requiera actualizar el puntaje presionando el botón puntuación, debe verificar que la celda de la columna puntaje se encuentren vacías, es decir, se debe borrar cualquier valor de puntaje obtenido previamente."]
["b) Volumen de quejas asociadas a un trámite: "]
["Considerará la cantidad de quejas recibidas en relación a un trámite durante un año. Estas quejas deberán estar documentadas en medios físicos y/o digitales."]
["Para determinar la puntuación, se colocará en una tabla todos los trámites con sus correspondientes quejas ordenándose de menor a mayor. Se dividirá en 2 partes en los que cada grupo contenga la misma cantidad de trámites."]
["Para realizar el registro realice lo siguiente:"]
["1.- Seleccione la hoja VOLUMEN DE QUEJAS"]
["2.- Ingrese los trámites de la institución registrando el identificador y nombre en las columnas respectivas.  Si usted requiere de acuerdo al número de trámites copie filas adicionales que estén dentro del cuadro"]
["3.- Para cada trámite debe especificar en la columna VOLUMEN QUEJAS el número de quejas anual, de acuerdo a lo mencionado anteriormente."]
["4.- Una vez terminado el llenado solicitado presione el botón PUNTUACIÓN."]
["5.- Usted visualizará el ordenamiento de los trámites ingresados de acuerdo al número de  volumen o frecuencia anual."]
["6.- Así mismo, usted visualizará el puntaje obtenido en la columna PUNTUACIÓN de acuerdo al grupo obtenido por cada trámite de acuerdo al número de volumen o frecuencia anual cosiderando lo siguiente: La puntuación se basará en los siguientes grupos:\n** Primer grupo (trámites con menor cantidad de quejas, no incluye los trámites con queja 0 ) = 4\n** Segundo grupo (trámites con mayor porcentaje de quejas) = 10"]
["El valor del volumen de quejas no debe ser superior al valor del volumen de la demana, no le permitirá registrar un valor."]
["c) Costo para la administración pública: "]
["En cada trámite, basado en un caso estándar, se deberá estimar el costo incurrido en el costo de personal y recursos necesarios para su atención desde que el administrado entregó todos los requisitos hasta que la institución entregue el producto, respuesta o servicio requerido en el trámite. Se considerará:"]
["• Costo de personal:"]
["Costo del personal para atender el trámite, se excluyen actividades realizadas automáticamente o que dependen del administrado. El tiempo deberá considerar únicamente el tiempo efectivo de trabajo del personal, no debe considerar el tiempo de espera o de movimiento."]
["• Costo de recursos:"]
["Se deberá considerar el costo directo en el que la institución debe incurrir para atender un trámite. Se debe considerar los insumos o materia prima necesaria u cualquier otro que la institución considere pertinente."]
["Para realizar el registro realice lo siguiente:"]
["1.- Seleccione la hoja COSTO ADMINISTRACIÓN PÚBLICA"]
["2.- Ingrese los trámites de la institución registrando el identificador y nombre en las columnas respectivas.  Si usted requiere de acuerdo al número de trámites copie filas adicionales que estén dentro del cuadro"]
["3.- Para calcular el tiempo de las actividades, utilizar la hoja AUXILIAR COSTO ADMINISTRACIÓN donde deberá listar todas las actividades que realiza la institución en un caso estándar y asignar el tiempo mínimo que toma cada actvidad (en horas). El tiempo total de las actividades, deberá ingresar en la correspondiente celda de la hoja COSTO ADMINISTRACIÓN PÚBLICA"]
["4.- En función de la información registrada en el paso 3, la matriz entregará el costo del personal"]
["5.- Completar la columna \"Costo recursos\", en la cual ingresará el costo directo en el que incurre la institución para entregar el trámite. En este valor se considerarán los valores correspondientes a insumos y/o materia prima mínimos que se invierten por cada trámite (no se considera mano de obra)"]
["6.- La columna \"Costo para la adm. pública\" mostrará el costo de este criterio para cada trámite"]
["7,- Para que la fórmula funcione debe arrastrar hacia abajo al último de los támites ingresados, no copiar"]
["7.- Una vez que disponga del Costo para la administración pública, presionar el botón \"GENERAR\"."]
["8. Visualizar la hoja “RESUMEN DE COSTO AP” en la que va a encontrar copiada las celdas necesarias para el ordenamiento y puntuación de las mismas al presionar el botón “PUNTUACIÓN”"]
[]
["d) Tiempo de respuesta: "]
["Considerará los tiempos que a las instituciones les toma dar respuesta a un trámite desde que reciben la solicitud del administrado hasta la finalización del mismo. Para la definición del tiempo se considerará un caso estándar."]
["Para determinar la puntuación, se colocará en una tabla todos los trámites con el tiempo de respuesta, ordenándose de menor a mayor. Se dividirá en 4 grupos, en los que cada uno contenga la misma cantidad de trámites."]
["Para realizar el registro realice lo siguiente:"]
["1.- Seleccione la hoja TIEMPO DE RESPUESTA"]
["2.- Ingrese los trámites de la institución registrando el identificador y nombre en las columnas respectivas.  Si usted requiere de acuerdo al número de trámites copie filas adicionales que estén dentro del cuadro"]
["3.- Para cada trámite debe especificar en la columna TIEMPO RESPUESTA el tiempo, de acuerdo a lo mencionado anteriormente."]
["4.- Una vez terminado el llenado solicitado presione el botón PUNTUACIÓN."]
["5.- Usted visualizará el ordenamiento de los trámites ingresados de acuerdo al número de  volumen o frecuencia anual."]
["6.- Así mismo, usted visualizará el puntaje obtenido en la columna PUNTUACIÓN de acuerdo al grupo obtenido por cada trámite de acuerdo al número de volumen o frecuencia anual cosiderando lo siguiente:  La puntuación considera lo siguiente:\n** Primer grupo (menor o igual a 40 horas laboralres) = 0\n** Segundo grupo mayor  40 horas laboralres) = 30"]
["e) Canal de atención: "]
["Considerará los canales de atención a través de los cuales el administrado puede iniciar el trámite."]
["Para realizar el registro realice lo siguiente:"]
["1.- Seleccione la hoja CANAL ATENCIÓN"]
["2.- Ingrese los trámites de la institución registrando el identificador y nombre en las columnas respectivas.  Si usted requiere de acuerdo al número de trámites copie filas adicionales que estén dentro del cuadro"]
["3.- Para cada trámite debe seleccionar el canal de atención del trámite en la columna CANAL ATENCIÓN, que pueden ser: \nEl trámite se puede completar totalmente en línea: Se considera trámite totalmente en línea cuando el administrado no requiere realizar ninguna interacción presencial con la institución = 0\nEl trámite no se puede completar totalmente en línea: Se considera este caso, cuando el trámite incluye al menos una actividad, incluido mecanismos de pago, en la que el administrado deba acudir presencialmente a la institución, para la realización de dicho trámite. Los trámites presenciales se consideran dentro de esta categoría = 10"]
["4.- De acuerdo a la selección usted obtendrá la puntuación del trámite que se visualizará en la columna PUNTUACIÓN."]
[]
["f) Resumen"]
["En esta hoja deberá consolidar todas las puntuaciones obtenidas para cada trámite en los criterios a) hasta e). Adicionalmente deberá analizar los criterios adicionales que dispone la norma técnica, para estos últimos solamente deberá seleccionar en la celda correspondiente y la matriz asignará la puntuación adicional. Los criterios que deberá considerar son:\n- NECESIDADES CIUDADANAS: Si la institución ha implementado mecanismos para identificar necesidades ciudadanas respecto al trámite, seleccionar \"SI\", caso contrario, seleccionar \"NO\"\n- SUSCEPTIBILIDAD A CORRUPCIÓN: Si la institución dispone de información documentada sobre presuntos actos de corrupción, seleccionar \"SI\", caso contrario, seleccionar \"NO\"\n- VOLUMEN DE DEVOLUCIONES: Si la institución posee documentación sobre devoluciones del trámite en una cantidad significativa, seleccionar \"SI\", caso contrario, seleccionar \"NO\"\nPara que funcione la lista depelgable debe arrastrar la lista y la puntuación hacia abajo al último de los támites ingresados, no copiar"]
["En la columna puntaje total se realizará la sumatoria de los valores de los criterios básicos y adicionales. Este valor deberá registrarse en la plataforma GOB.EC"]

{"sheet":"DEMANDA ANUAL","index":1,"n_rows":20,"n_cols":4,"rows_kept":20,"cut":false,"hidden":false,"merged":[[0,0,0,3],[1,0,1,3]]}
["PRIORIZACIÓN DE TRÁMITES ADMINISTRATIVOS"]
["DEMANDA ANUAL"]
[]
["IDENTIFICADOR","TRÁMITE","DEMANDA ANUAL","PUNTAJE"]
["SGR-025-01-04 ","Disolución y liquidación de la Organizacion Social en Gestión de Riesgos",0,0]
["SGR-025-01-02","Inclusión y exclusión de miembros de organizaciones sociales en gestión de riesgos",0,0]
["SGR-025-01-03","Registro de directivas de la organización social en Gestión de Riesgos",2,3]
["SGR-022-01-01","Generación de mapa de amenazas",4,3]
["SGR-012-02-01","Información pública del Servicio Nacional de Gestión de Riesgos y Emergencias modalidad presencial",9,3]
["SGR-032-02-01 ","Información de gestión de riesgos en línea",10,3]
["SGR-032-01-01 ","Información de gestión de riesgos modalidad presencial",11,6]
["SGR-025-01-01 ","Aprobación del estatuto y otorgamiento de la personalidad jurídica como Organizacion Social en Gestión de Riesgos",14,6]
["SNGRE-024-01-01 ","Ejecución de asesoría técnica para simulaciones y simulacros por eventos peligrosos relacionados con la gestión del riesgo de desastres",15,6]
["SGR-032-03-01 ","Información de gestión de riesgos, modalidad no presencial",24,6]
["SNGRE-028-01-01 ","Coordinación para la participación del voluntariado de protección civil en eventos de concentración masiva",39,10]
["SGR-012-01-01","Información pública del Servicio Nacional de Gestión de Riesgos y Emergencias en línea",61,10]
["SNGRE-002-01-01 ","Acceso al análisis de amenaza o riesgo aceptable por eventos peligrosos relacionados con la gestión del riesgo de desastres en territorio nacional",418,10]
["SNGRE-016-01-01 ","Emisión de información de eventos peligrosos relacionados a la gestión del riesgo de desastres en territorio nacional",968,10]
["SGR-030-01-01 ","Inscripción de la ciudadanía para ingreso al Voluntariado de Protección Civil del Servicio Nacional de Gestión de Riesgos y Emergencias",6881,10]
["SNGRE-006-01-01","Ejecución de capacitación en gestión de riesgos de desastres",105493,10]

{"sheet":"VOLUMEN DE QUEJAS","index":2,"n_rows":20,"n_cols":6,"rows_kept":20,"cut":false,"hidden":false,"merged":[[0,0,0,5],[1,0,1,5]]}
["PRIORIZACIÓN DE TRÁMITES ADMINISTRATIVOS"]
["VOLUMEN DE QUEJAS"]
[]
["IDENTIFICADOR","TRÁMITE","VOLUMEN DEMANDA","VOLUMEN DE QUEJAS","PORCENTAJE","PUNTUACIÓN"]
["SGR-025-01-04 ","Disolución y liquidación de la Organizacion Social en Gestión de Riesgos",0,0,0,0]
["SGR-025-01-02","Inclusión y exclusión de miembros de organizaciones sociales en gestión de riesgos",0,0,0,0]
["SGR-025-01-03","Registro de directivas de la organización social en Gestión de Riesgos",2,0,0,0]
["SGR-022-01-01","Generación de mapa de amenazas",4,0,0,0]
["SGR-012-02-01","Información pública del Servicio Nacional de Gestión de Riesgos y Emergencias modalidad presencial",9,0,0,0]
["SGR-032-02-01 ","Información de gestión de riesgos en línea",10,1,10,10]
["SGR-032-01-01 ","Información de gestión de riesgos modalidad presencial",11,0,0,0]
["SGR-025-01-01 ","Aprobación del estatuto y otorgamiento de la personalidad jurídica como Organizacion Social en Gestión de Riesgos",14,0,0,0]
["SNGRE-024-01-01 ","Ejecución de asesoría técnica para simulaciones y simulacros por eventos peligrosos relacionados con la gestión del riesgo de desastres",15,0,0,0]
["SGR-032-03-01 ","Información de gestión de riesgos, modalidad no presencial",24,0,0,0]
["SNGRE-028-01-01 ","Coordinación para la participación del voluntariado de protección civil en eventos de concentración masiva",39,0,0,0]
["SGR-012-01-01","Información pública del Servicio Nacional de Gestión de Riesgos y Emergencias en línea",61,0,0,0]
["SNGRE-002-01-01 ","Acceso al análisis de amenaza o riesgo aceptable por eventos peligrosos relacionados con la gestión del riesgo de desastres en territorio nacional",418,0,0,0]
["SNGRE-016-01-01 ","Emisión de información de eventos peligrosos relacionados a la gestión del riesgo de desastres en territorio nacional",968,0,0,0]
["SGR-030-01-01 ","Inscripción de la ciudadanía para ingreso al Voluntariado de Protección Civil del Servicio Nacional de Gestión de Riesgos y Emergencias",6881,0,0,0]
["SNGRE-006-01-01","Ejecución de capacitación en gestión de riesgos de desastres",105493,0,0,0]

{"sheet":"COSTO ADMINISTRACIÓN PÚBLICA","index":3,"n_rows":21,"n_cols":9,"rows_kept":21,"cut":false,"hidden":false,"merged":[[0,0,0,5],[1,0,1,5],[3,0,4,0],[3,1,4,1],[3,2,3,4],[3,5,4,5]]}
["PRIORIZACIÓN DE TRÁMITES ADMINISTRATIVOS"]
["COSTOS PARA LA ADMINISTRACIÓN PÚBLICA"]
[]
["IDENTIFICADOR","TRÁMITE","INSUMOS PARA COSTO",null,null,"COSTO PARA LA ADM. PÚBLICA",null,"SBU",400]
[null,null,"TIEMPO (HORAS)","COSTO PERSONAL","COSTO RECURSOS"]
["SGR-025-01-04 ","Disolución y liquidación de la Organizacion Social en Gestión de Riesgos",{"$f":"'AUXILIAR COSTO ADMINISTRACIÓN'!C12","v":53},{"$f":"C6*$I$4/160","v":132.5},{"$f":"'AUXILIAR COSTO ADMINISTRACIÓN'!C15","v":1697.4613170731709},{"$f":"D6+E6","v":1829.9613170731709}]
["SGR-025-01-02","Inclusión y exclusión de miembros de organizaciones sociales en gestión de riesgos",{"$f":"'AUXILIAR COSTO ADMINISTRACIÓN'!G12","v":52.5},{"$f":"C7*$I$4/160","v":131.25},{"$f":"'AUXILIAR COSTO ADMINISTRACIÓN'!G15","v":1697.4613170731709},{"$f":"D7+E7","v":1828.7113170731709}]
["SGR-025-01-03","Registro de directivas de la organización social en Gestión de Riesgos",{"$f":"'AUXILIAR COSTO ADMINISTRACIÓN'!K12","v":52.5},131.25,{"$f":"'AUXILIAR COSTO ADMINISTRACIÓN'!K15","v":1697.4613170731709},1828.7113170731709]
["SGR-022-01-01","Generación de mapa de amenazas",{"$f":"'AUXILIAR COSTO ADMINISTRACIÓN'!C28","v":175},437.5,{"$f":"'AUXILIAR COSTO ADMINISTRACIÓN'!C31","v":6821.1134909862139},7258.6134909862139]
["SGR-012-02-01","Información pública del Servicio Nacional de Gestión de Riesgos y Emergencias modalidad presencial",{"$f":"'AUXILIAR COSTO ADMINISTRACIÓN'!G28","v":25},62.5,{"$f":"'AUXILIAR COSTO ADMINISTRACIÓN'!G31","v":1697.4613170731709},1759.9613170731709]
["SGR-032-02-01 ","Información de gestión de riesgos en línea",{"$f":"'AUXILIAR COSTO ADMINISTRACIÓN'!K28","v":4.5},11.25,{"$f":"'AUXILIAR COSTO ADMINISTRACIÓN'!K31","v":2229.4613170731709},2240.7113170731709]
["SGR-032-01-01 ","Información de gestión de riesgos modalidad presencial",{"$f":"'AUXILIAR COSTO ADMINISTRACIÓN'!G44","v":15},37.5,{"$f":"'AUXILIAR COSTO ADMINISTRACIÓN'!G47","v":2229.4613170731709},2266.9613170731709]
["SGR-025-01-01 ","Aprobación del estatuto y otorgamiento de la personalidad jurídica como Organizacion Social en Gestión de Riesgos",{"$f":"'AUXILIAR COSTO ADMINISTRACIÓN'!K44","v":61},152.5,{"$f":"'AUXILIAR COSTO ADMINISTRACIÓN'!K47","v":1697.4613170731709},1849.9613170731709]
["SNGRE-024-01-01 ","Ejecución de asesoría técnica para simulaciones y simulacros por eventos peligrosos relacionados con la gestión del riesgo de desastres",{"$f":"'AUXILIAR COSTO ADMINISTRACIÓN'!C44","v":24.5},61.25,{"$f":"'AUXILIAR COSTO ADMINISTRACIÓN'!C47","v":2229.4613170731709},2290.7113170731709]
["SGR-032-03-01 ","Información de gestión de riesgos, modalidad no presencial",{"$f":"'AUXILIAR COSTO ADMINISTRACIÓN'!C60","v":15},37.5,{"$f":"'AUXILIAR COSTO ADMINISTRACIÓN'!C63","v":2229.4613170731709},2266.9613170731709]
["SNGRE-028-01-01 ","Coordinación para la participación del voluntariado de protección civil en eventos de concentración masiva",{"$f":"'AUXILIAR COSTO ADMINISTRACIÓN'!G60","v":127},317.5,{"$f":"'AUXILIAR COSTO ADMINISTRACIÓN'!G63","v":2237.4613170731709},2554.9613170731709]
["SGR-012-01-01","Información pública del Servicio Nacional de Gestión de Riesgos y Emergencias en línea",{"$f":"'AUXILIAR COSTO ADMINISTRACIÓN'!K60","v":25},62.5,{"$f":"'AUXILIAR COSTO ADMINISTRACIÓN'!K63","v":1697.4613170731709},1759.9613170731709]
["SNGRE-002-01-01 ","Acceso al análisis de amenaza o riesgo aceptable por eventos peligrosos relacionados con la gestión del riesgo de desastres en territorio nacional",{"$f":"'AUXILIAR COSTO ADMINISTRACIÓN'!C76","v":101},252.5,{"$f":"'AUXILIAR COSTO ADMINISTRACIÓN'!C79","v":7529.1134909862139},7781.6134909862139]
["SNGRE-016-01-01 ","Emisión de información de eventos peligrosos relacionados a la gestión del riesgo de desastres en territorio nacional",{"$f":"'AUXILIAR COSTO ADMINISTRACIÓN'!G76","v":11},27.5,{"$f":"'AUXILIAR COSTO ADMINISTRACIÓN'!G79","v":5726.9119756097562},5754.4119756097562]
["SGR-030-01-01 ","Inscripción de la ciudadanía para ingreso al Voluntariado de Protección Civil del Servicio Nacional de Gestión de Riesgos y Emergencias",{"$f":"'AUXILIAR COSTO ADMINISTRACIÓN'!K76","v":1.5},3.75,{"$f":"'AUXILIAR COSTO ADMINISTRACIÓN'!K79","v":844.73065853658545},848.48065853658545]
["SNGRE-006-01-01","Ejecución de capacitación en gestión de riesgos de desastres",{"$f":"'AUXILIAR COSTO ADMINISTRACIÓN'!C92","v":0.5},1.25,{"$f":"'AUXILIAR COSTO ADMINISTRACIÓN'!C95","v":844.73065853658545},845.98065853658545]

{"sheet":"RESUMEN DE COSTOS AP","index":4,"n_rows":20,"n_cols":4,"rows_kept":20,"cut":false,"hidden":false,"merged":[[0,0,0,5],[1,0,1,5]]}
["PRIORIZACIÓN DE TRÁMITES ADMINISTRATIVOS"]
["COSTOS PARA LA ADMINISTRACIÓN PÚBLICA"]
[]
["IDENTIFICADOR","TRÁMITE","COSTO PARA LA ADM. PÚBLICA","PUNTUACIÓN"]
["SNGRE-006-01-01","Ejecución de capacitación en gestión de riesgos de desastres",845.98065853658545,5]
["SGR-030-01-01 ","Inscripción de la ciudadanía para ingreso al Voluntariado de Protección Civil del Servicio Nacional de Gestión de Riesgos y Emergencias",848.48065853658545,5]
["SGR-012-01-01","Información pública del Servicio Nacional de Gestión de Riesgos y Emergencias en línea",1759.9613170731709,5]
["SGR-012-02-01","Información pública del Servicio Nacional de Gestión de Riesgos y Emergencias modalidad presencial",1759.9613170731709,5]
["SGR-025-01-02","Inclusión y exclusión de miembros de organizaciones sociales en gestión de riesgos",1828.7113170731709,5]
["SGR-025-01-03","Registro de directivas de la organización social en Gestión de Riesgos",1828.7113170731709,5]
["SGR-025-01-04 ","Disolución y liquidación de la Organizacion Social en Gestión de Riesgos",1829.9613170731709,10]
["SGR-025-01-01 ","Aprobación del estatuto y otorgamiento de la personalidad jurídica como Organizacion Social en Gestión de Riesgos",1849.9613170731709,10]
["SGR-032-02-01 ","Información de gestión de riesgos en línea",2240.7113170731709,10]
["SGR-032-01-01 ","Información de gestión de riesgos modalidad presencial",2266.9613170731709,10]
["SGR-032-03-01 ","Información de gestión de riesgos, modalidad no presencial",2266.9613170731709,10]
["SNGRE-024-01-01 ","Ejecución de asesoría técnica para simulaciones y simulacros por eventos peligrosos relacionados con la gestión del riesgo de desastres",2290.7113170731709,20]
["SNGRE-028-01-01 ","Coordinación para la participación del voluntariado de protección civil en eventos de concentración masiva",2554.9613170731709,20]
["SNGRE-016-01-01 ","Emisión de información de eventos peligrosos relacionados a la gestión del riesgo de desastres en territorio nacional",5754.4119756097562,20]
["SGR-022-01-01","Generación de mapa de amenazas",7258.6134909862139,20]
["SNGRE-002-01-01 ","Acceso al análisis de amenaza o riesgo aceptable por eventos peligrosos relacionados con la gestión del riesgo de desastres en territorio nacional",7781.6134909862139,20]

{"sheet":"AUXILIAR COSTO ADMINISTRACIÓN","index":5,"n_rows":95,"n_cols":15,"rows_kept":95,"cut":false,"hidden":false,"merged":[[93,0,93,1],[94,0,94,1],[61,8,61,9],[62,8,62,9],[77,0,77,1],[78,0,78,1],[77,4,77,5],[78,4,78,5],[77,8,77,9],[78,8,78,9],[91,0,91,1],[92,0,92,1],[61,0,61,1],[62,0,62,1],[61,4,61,5],[62,4,62,5],[46,4,46,5],[45,0,45,1],[46,0,46,1],[30,0,30,1],[30,4,30,5],[33,5,33,6],[33,1,33,2],[27,4,27,5],[28,4,28,5],[29,8,29,9],[30,8,30,9],[45,4,45,5],[33,9,33,10],[17,9,17,10],[13,8,13,9],[59,0,59,1],[60,0,60,1],[59,4,59,5],[60,4,60,5],[59,8,59,9],[60,8,60,9],[13,0,13,1],[14,0,14,1],[13,4,13,5],[14,4,14,5],[29,0,29,1],[29,4,29,5],[27,0,27,1],[28,0,28,1],[1,12,1,13],[12,0,12,1],[11,0,11,1],[11,4,11,5],[12,4,12,5],[11,8,11,9],[12,8,12,9],[1,1,1,2],[1,5,1,6],[1,9,1,10],[65,1,65,2],[65,5,65,6],[65,9,65,10],[81,1,81,2],[75,8,75,9],[76,8,76,9],[75,4,75,5],[76,4,76,5],[75,0,75,1],[76,0,76,1],[14,8,14,9],[49,1,49,2],[49,5,49,6],[49,9,49,10],[43,8,43,9],[44,8,44,9],[43,4,43,5],[44,4,44,5],[43,0,43,1],[44,0,44,1],[45,8,45,9],[46,8,46,9],[27,8,27,9],[28,8,28,9],[17,1,17,2],[17,5,17,6]]}
[]
["TRÁMITE:","SGR-025-01-04 : Disolución y liquidación de la Organizacion Social en Gestión de Riesgos",null,null,"TRÁMITE:","SGR-025-01-02: Inclusión y exclusión de miembros de organizaciones sociales en gestión de riesgos",null,null,"TRÁMITE:","SGR-025-01-03: Registro de directivas de la organización social en Gestión de Riesgos",null,null,"Costos Anuales (Recursos) 2020"]
["NO.","ACTIVIDAD","TIEMPO (HORAS)",null,"NO.","ACTIVIDAD","TIEMPO (HORAS)",null,"NO.","ACTIVIDAD","TIEMPO (HORAS)",null,"Luz ",{"$f":"((705.62+1101.56)/410)","v":4.4077560975609753}]
[1,"Recepción de solicitud",0,null,1,"Recepción de solicitud",0,null,1,"Recepción de solicitud",0,null,"Serv. Telecomunicaciones x persona",{"$f":"192832.39/410","v":470.3229024390244},{"$f":"+N4/12","v":39.193575203252031}]
[2,"Gestión de disolución y liquidación de la organización",48,null,2,"Gestión de inclusión y exclusión de miembros de organizaciones",48,null,2,"Gestión de registro de directivas de la organización",48,null,"viáticos analistas",80]
[3,"Emisión de resolución de disolución y liquidación de la organización",4,null,3,"Emisión de comunicación formal de la  inclusión y exclusión de miembros de organizaciones",4,null,3,"Emisión de comunicación formal del registro de directiva",4,null,"viático directivos",130]
[4,"Preparación de respuesta, suscripción y envío",0.5,null,4,"Registro de trámite",0.5,null,4,"Registro de trámite",0.5,null,"licencias ARCGIS x persona",{"$f":"59014/23","v":2565.8260869565215},{"$f":"+N7/12","v":213.81884057971013}]
[5,"Registro de trámite",0.5,null,5,null,null,null,5,null,null,null,"microfono",8.74]
[6,null,null,null,6,null,null,null,6,null,null,null,"monitor",350]
[7,null,null,null,7,null,null,null,7,null,null,null,"teclado ",10]
[8,null,null,null,8,null,null,null,8,null,null,null,"mouse",10]
["SUMATORIA ACTIVIDADES",null,{"$f":"SUM(C4:C11)","v":53},null,"SUMATORIA ACTIVIDADES",null,{"$f":"SUM(G4:G11)","v":52.5},null,"SUMATORIA ACTIVIDADES",null,{"$f":"SUM(K4:K11)","v":52.5},null,"teléfono",270]
["No. servidores relacionados al trámite",null,2,null,"No. servidores relacionados al trámite",null,2,null,"No. servidores relacionados al trámite",null,2,null,"radio portátil",711]
["Costos anuales x pers.",null,{"$f":"+N3+N4+N9+N10+N116+N15+N11","v":848.73065853658545},null,"Costos anuales x pers.",null,{"$f":"+N3+N4+N9+N10+N11+N15","v":848.73065853658545},null,"Costos anuales x pers.",null,{"$f":"+N3+N4+N9+N10+N11+N15","v":848.73065853658545},null,"camara web",70.5]
["Costo total del trámite",null,{"$f":"+C14*C13","v":1697.4613170731709},null,"Costo total del trámite",null,{"$f":"+G14*G13","v":1697.4613170731709},null,"Costo total del trámite",null,{"$f":"+K14*K13","v":1697.4613170731709},null,"resma hojas",4]
[null,null,null,null,null,null,null,null,null,null,null,null,"extensómetro magnético",5359.2]
[]
["TRÁMITE:","SGR-022-01-01: Generación de mapa de amenazas",null,null,"TRÁMITE:","SGR-012-02-01: Información pública del Servicio Nacional de Gestión de Riesgos y Emergencias modalidad presencial",null,null,"TRÁMITE:","SGR-032-02-01 : Información de gestión de riesgos en línea"]
["NO.","ACTIVIDAD","TIEMPO (HORAS)",null,"NO.","ACTIVIDAD","TIEMPO (HORAS)",null,"NO.","ACTIVIDAD","TIEMPO (HORAS)"]
[1,"Recepción de solicitud",0,null,1,"Recepción de solicitud",0,null,1,"Ingreso al Geoportal",0]
[2,"Análisis de los datos y revisión de información geográfica",6,null,2,"Verificación de información y análisis de datos",24,null,2,"Selección y descarga de información de gestión de riesgos (usuario)",0]
[3,"Solicitud y recepción de datos a institutos técnicos científicos",72,null,3,"Preparación de respuesta, suscripción y envío",0.5,null,3,"Actualización de información Geoportal de la SNGRE a través de enlace http://datosabiertos-gestionriesgosec.opendata.arcgis.com/",4]
[4,"Generación de mapas",96,null,4,"Registro de trámite",0.5,null,4,"Registro de trámite",0.5]
[5,"Preparación de respuesta, suscripción y envío",0.5,null,5,null,null,null,5]
[6,"Registro de trámite",0.5,null,6,null,null,null,6]
[7,null,null,null,7,null,null,null,7]
[8,null,null,null,8,null,null,null,8]
["SUMATORIA ACTIVIDADES",null,{"$f":"SUM(C20:C27)","v":175},null,"SUMATORIA ACTIVIDADES",null,{"$f":"SUM(G20:G27)","v":25},null,"SUMATORIA ACTIVIDADES",null,{"$f":"SUM(K20:K27)","v":4.5}]
["No. servidores relacionados al trámite",null,2,null,"No. servidores relacionados al trámite",null,2,null,"No. servidores relacionados al trámite",null,2]
["Costos anuales x pers.",null,{"$f":"+N3+N4+N7+N9+N10+N11","v":3410.556745493107},null,"Costos anuales x pers.",null,{"$f":"N3+N4+N9+N10+N11+N15","v":848.73065853658545},null,"Costos anuales x pers.",null,{"$f":"+N3+N4+N9+N10+N11+N12","v":1114.7306585365855}]
["Costo total del trámite",null,{"$f":"+C30*C29","v":6821.1134909862139},null,"Costo total del trámite",null,{"$f":"+G30*G29","v":1697.4613170731709},null,"Costo total del trámite",null,{"$f":"+K30*K29","v":2229.4613170731709}]
[]
[]
["TRÁMITE:","SNGRE-024-01-01: Ejecución de asesoría técnica para simulaciones y simulacros por eventos peligrosos relacionados con la gestión del riesgo de desastres",null,null,"TRÁMITE:","SGR-032-01-01: Información de gestión de riesgos modalidad presencial",null,null,"TRÁMITE:","SGR-025-01-01: Aprobación del estatuto y otorgamiento de la personalidad jurídica como Organizacion Social en Gestión de Riesgos"]
["NO.","ACTIVIDAD","TIEMPO (HORAS)",null,"NO.","ACTIVIDAD","TIEMPO (HORAS)",null,"NO.","ACTIVIDAD","TIEMPO (HORAS)"]
[1,"Recepción de solicitud",0,null,1,"Recepción de solicitud  ",0,null,1,"Recepción de solicitud",0]
[2,"Ejecución de asesoría para simulaciones y simulacros",24,null,2,"Verificación de disponibilidad de información",2,null,2,"Gestión de revisión y análisis de estatutos de la organización",48]
[3,"Registro de asesoría para simulaciones y simulacros",0.5,null,3,"Consolidación y validación de información ",4,null,3,"Emisión de personalidad jurídica",12]
[4,null,null,null,4,"Generación de información de gestión de riesgos",8,null,4,"Preparación de respuesta, suscripción y envío",0.5]
[5,null,null,null,5,"Preparación de respuesta, suscripción y envío",0.5,null,5,"Registro de trámite",0.5]
[6,null,null,null,6,"Registro de trámite",0.5,null,6]
[7,null,null,null,7,null,null,null,7]
[8,null,null,null,8,null,null,null,8]
["SUMATORIA ACTIVIDADES",null,{"$f":"SUM(C36:C43)","v":24.5},null,"SUMATORIA ACTIVIDADES",null,{"$f":"SUM(G36:G43)","v":15},null,"SUMATORIA ACTIVIDADES",null,{"$f":"SUM(K36:K43)","v":61}]
["No. servidores relacionados al trámite",null,2,null,"No. servidores relacionados al trámite",null,2,null,"No. servidores relacionados al trámite",null,2]
["Costos anuales x pers.",null,{"$f":"+N4+N3+N9+N10+N11+N12","v":1114.7306585365855},null,"Costos anuales x pers.",null,{"$f":"+K30","v":1114.7306585365855},null,"Costos anuales x pers.",null,{"$f":"+N3+N4+N9+N10+N11+N15","v":848.73065853658545}]
["Costo total del trámite",null,{"$f":"+C46*C45","v":2229.4613170731709},null,"Costo total del trámite",null,{"$f":"+G46*G45","v":2229.4613170731709},null,"Costo total del trámite",null,{"$f":"+K46*K45","v":1697.4613170731709}]
[]
[]
["TRÁMITE:","SGR-032-03-01: Información de gestión de riesgos, modalidad no presencial",null,null,"TRÁMITE:","SNGRE-028-01-01: Coordinación para la participación del voluntariado de protección civil en eventos de concentración masiva",null,null,"TRÁMITE:","SGR-012-01-01: Información pública del Servicio Nacional de Gestión de Riesgos y Emergencias en línea"]
["NO.","ACTIVIDAD","TIEMPO (HORAS)",null,"NO.","ACTIVIDAD","TIEMPO (HORAS)",null,"NO.","ACTIVIDAD","TIEMPO (HORAS)"]
[1,"Recepción de solicitud  ",0,null,1,"Recepción de solicitud  para participación del voluntariado en eventos de concentración masiva",0,null,1,"Recepción de solicitud a través de portal contacto ciudadano ",0]
[2,"Verificación de disponibilidad de información",2,null,2,"Activación de cadena de llamadas a voluntarios",2,null,2,"Verificación de información y análisis de datos",24]
[3,"Consolidación y validación de información ",4,null,3,"Verificación de disponibilidad de voluntarios a participar en evento",4,null,3,"Preparación de respuesta, suscripción y envío",0.5]
[4,"Generación de información de gestión de riesgos",8,null,4,"Comunicación de confirmación al usuario",0.5,null,4,"Registro de trámite",0.5]
[5,"Preparación de respuesta, suscripción y envío",0.5,null,5,"Participación del voluntariado en evento de concentración masiva",120,null,5]
[6,"Registro de trámite",0.5,null,6,"Registro de trámite",0.5,null,6]
[7,null,null,null,7,null,null,null,7]
[8,null,null,null,8,null,null,null,8]
["SUMATORIA ACTIVIDADES",null,{"$f":"SUM(C52:C59)","v":15},null,"SUMATORIA ACTIVIDADES",null,{"$f":"SUM(G52:G59)","v":127},null,"SUMATORIA ACTIVIDADES",null,{"$f":"SUM(K52:K59)","v":25}]
["No. servidores relacionados al trámite",null,2,null,"No. servidores relacionados al trámite",null,2,null,"No. servidores relacionados al trámite",null,2]
["Costos anuales x pers.",null,{"$f":"+N3+N4+N9+N10+N11+N12","v":1114.7306585365855},null,"Costos anuales x pers.",null,{"$f":"+N3+N4+N9+N10+N11+N12+N15","v":1118.7306585365855},null,"Costos anuales x pers.",null,{"$f":"G30","v":848.73065853658545}]
["Costo total del trámite",null,{"$f":"+C62*C61","v":2229.4613170731709},null,"Costo total del trámite",null,{"$f":"+G62*G61","v":2237.4613170731709},null,"Costo total del trámite",null,{"$f":"+K62*K61","v":1697.4613170731709}]
[]
[]
["TRÁMITE:","SNGRE-002-01-01: Acceso al análisis de amenaza o riesgo aceptable por eventos peligrosos relacionados con la gestión del riesgo de desastres en territorio nacional",null,null,"TRÁMITE:","SNGRE-016-01-01: Emisión de información de eventos peligrosos relacionados a la gestión del riesgo de desastres en territorio nacional",null,null,"TRÁMITE:","SGR-030-01-01: Inscripción de la ciudadanía para ingreso al Voluntariado de Protección Civil del Servicio Nacional de Gestión de Riesgos y Emergencias"]
["NO.","ACTIVIDAD","TIEMPO (HORAS)",null,"NO.","ACTIVIDAD","TIEMPO (HORAS)",null,"NO.","ACTIVIDAD","TIEMPO (HORAS)"]
[1,"Recepción de solicitud de análisis de amenaza o riesgo aceptable",0,null,1,"Recepción de solicitud  ",0,null,1,"Recepción de solicitud  ",0]
[2,"Análisis de información geomorfológica de la zona",24,null,2,"Verificación de disponibilidad de información",2,null,2,"Validación de requisitos",0.5]
[3,"Inspección en territorio",60,null,3,"Consolidación y validación de información ",4,null,3,"Comunicación de aprobación de inscripción",0.5]
[4,"Geneación de informe y mapa de amenaza",16,null,4,"Generación de información de eventos peligrosos",4,null,4,"Registro de trámite",0.5]
[5,"Preparación de respuesta, suscripción y envío",0.5,null,5,"Preparación de respuesta, suscripción y envío",0.5,null,5]
[6,"Registro de trámite",0.5,null,6,"Registro de trámite",0.5,null,6]
[7,null,null,null,7,null,null,null,7]
[8,null,null,null,8,null,null,null,8]
["SUMATORIA ACTIVIDADES",null,{"$f":"SUM(C68:C75)","v":101},null,"SUMATORIA ACTIVIDADES",null,{"$f":"SUM(G68:G75)","v":11},null,"SUMATORIA ACTIVIDADES",null,{"$f":"SUM(K68:K75)","v":1.5}]
["No. Servidore relacionados al trámite",null,2,null,"No. Servidore relacionados al trámite",null,3,null,"No. Servidore relacionados al trámite",null,1]
["Costos anuales x pers.",null,{"$f":"+N3+N4+N5+N7+N9+N10+N11+N12+N15","v":3764.556745493107},null,"Costos anuales x pers.",null,{"$f":"+N3+N4+N8+N9+N10+N11+N12+N13+N14+N15","v":1908.9706585365855},null,"Costos anuales x pers.",null,{"$f":"+N3+N4+N9+N10+N11","v":844.73065853658545}]
["Costo total del trámite",null,{"$f":"+C78*C77","v":7529.1134909862139},null,"Costo total del trámite",null,{"$f":"+G78*G77","v":5726.9119756097562},null,"Costo total del trámite",null,{"$f":"+K78*K77","v":844.73065853658545}]
[]
[]
["TRÁMITE:","SNGRE-006-01-01: Ejecución de capacitación en gestión de riesgos de desastres"]
["NO.","ACTIVIDAD","TIEMPO (HORAS)"]
[1,"Registro de usuario en la plataforma http://cursosvirtuales.gestionderiesgos.gob.ec/.",0]
[2,"Usuario realiza el curso",0]
[3,"Atención de inquietud del curso en línea",0.5]
[4,"Usario recibe certificado en línea",0]
[5,"Registro de trámite",0]
[6]
[7]
[8]
["SUMATORIA ACTIVIDADES",null,{"$f":"SUM(C84:C91)","v":0.5}]
["No. servidores relacionados al trámite",null,1]
["Costos anuales x pers.",null,{"$f":"+N4+N3+N10+N9+N11","v":844.73065853658545}]
["Costo total del trámite",null,{"$f":"+C94*C93","v":844.73065853658545}]

{"sheet":"TIEMPO DE RESPUESTA","index":6,"n_rows":20,"n_cols":4,"rows_kept":20,"cut":false,"hidden":false,"merged":[[0,0,0,3],[1,0,1,3]]}
["PRIORIZACIÓN DE TRÁMITES ADMINISTRATIVOS"]
["TIEMPO DE RESPUESTA"]
[]
["IDENTIFICADOR","TRÁMITE","TIEMPO RESPUESTA (horas laborables)","PUNTUACIÓN"]
["SGR-025-01-04 ","Disolución y liquidación de la Organizacion Social en Gestión de Riesgos",216,30]
["SGR-025-01-02","Inclusión y exclusión de miembros de organizaciones sociales en gestión de riesgos",192,30]
["SGR-025-01-03","Registro de directivas de la organización social en Gestión de Riesgos",192,30]
["SGR-022-01-01","Generación de mapa de amenazas",504,30]
["SGR-012-02-01","Información pública del Servicio Nacional de Gestión de Riesgos y Emergencias modalidad presencial",72,30]
["SGR-032-02-01 ","Información de gestión de riesgos en línea",24,0]
["SGR-032-01-01 ","Información de gestión de riesgos modalidad presencial",72,30]
["SGR-025-01-01 ","Aprobación del estatuto y otorgamiento de la personalidad jurídica como Organizacion Social en Gestión de Riesgos",360,30]
["SNGRE-024-01-01 ","Ejecución de asesoría técnica para simulaciones y simulacros por eventos peligrosos relacionados con la gestión del riesgo de desastres",120,30]
["SGR-032-03-01 ","Información de gestión de riesgos, modalidad no presencial",72,30]
["SNGRE-028-01-01 ","Coordinación para la participación del voluntariado de protección civil en eventos de concentración masiva",360,30]
["SGR-012-01-01","Información pública del Servicio Nacional de Gestión de Riesgos y Emergencias en línea",72,30]
["SNGRE-002-01-01 ","Acceso al análisis de amenaza o riesgo aceptable por eventos peligrosos relacionados con la gestión del riesgo de desastres en territorio nacional",720,30]
["SNGRE-016-01-01 ","Emisión de información de eventos peligrosos relacionados a la gestión del riesgo de desastres en territorio nacional",72,30]
["SGR-030-01-01 ","Inscripción de la ciudadanía para ingreso al Voluntariado de Protección Civil del Servicio Nacional de Gestión de Riesgos y Emergencias",288,30]
["SNGRE-006-01-01","Ejecución de capacitación en gestión de riesgos de desastres",192,30]

{"sheet":"CANAL ATENCIÓN","index":7,"n_rows":20,"n_cols":12,"rows_kept":20,"cut":false,"hidden":false,"merged":[[0,0,0,3],[1,0,1,3]]}
["PRIORIZACIÓN DE TRÁMITES ADMINISTRATIVOS"]
["CANAL DE ATENCIÓN"]
[null,null,null,null,null,null,null,null,"Totalmente en Línea",null,null,0]
["IDENTIFICADOR","TRÁMITE","CANAL ATENCIÓN","PUNTUACIÓN",null,null,null,null,"No se completa totalmente en línea.",null,null,10]
["SGR-025-01-04 ","Disolución y liquidación de la Organizacion Social en Gestión de Riesgos","No se completa totalmente en línea.",{"$f":"IF(ISBLANK(C5),\"\",IF(C5=\"Totalmente en línea\",0,IF(C5=\"Inicia en línea\",6,10)))","v":10}]
["SGR-025-01-02","Inclusión y exclusión de miembros de organizaciones sociales en gestión de riesgos","No se completa totalmente en línea.",{"$f":"IF(ISBLANK(C6),\"\",IF(C6=\"Totalmente en línea\",0,IF(C6=\"Inicia en línea\",6,10)))","v":10}]
["SGR-025-01-03","Registro de directivas de la organización social en Gestión de Riesgos","No se completa totalmente en línea.",10]
["SGR-022-01-01","Generación de mapa de amenazas","No se completa totalmente en línea.",10]
["SGR-012-02-01","Información pública del Servicio Nacional de Gestión de Riesgos y Emergencias modalidad presencial","No se completa totalmente en línea.",10]
["SGR-032-02-01 ","Información de gestión de riesgos en línea","Totalmente en Línea",0]
["SGR-032-01-01 ","Información de gestión de riesgos modalidad presencial","No se completa totalmente en línea.",10]
["SGR-025-01-01 ","Aprobación del estatuto y otorgamiento de la personalidad jurídica como Organizacion Social en Gestión de Riesgos","No se completa totalmente en línea.",10]
["SNGRE-024-01-01 ","Ejecución de asesoría técnica para simulaciones y simulacros por eventos peligrosos relacionados con la gestión del riesgo de desastres","No se completa totalmente en línea.",10]
["SGR-032-03-01 ","Información de gestión de riesgos, modalidad no presencial","No se completa totalmente en línea.",10]
["SNGRE-028-01-01 ","Coordinación para la participación del voluntariado de protección civil en eventos de concentración masiva","No se completa totalmente en línea.",10]
["SGR-012-01-01","Información pública del Servicio Nacional de Gestión de Riesgos y Emergencias en línea","Totalmente en Línea",0]
["SNGRE-002-01-01 ","Acceso al análisis de amenaza o riesgo aceptable por eventos peligrosos relacionados con la gestión del riesgo de desastres en territorio nacional","No se completa totalmente en línea.",10]
["SNGRE-016-01-01 ","Emisión de información de eventos peligrosos relacionados a la gestión del riesgo de desastres en territorio nacional","No se completa totalmente en línea.",10]
["SGR-030-01-01 ","Inscripción de la ciudadanía para ingreso al Voluntariado de Protección Civil del Servicio Nacional de Gestión de Riesgos y Emergencias","No se completa totalmente en línea.",10]
["SNGRE-006-01-01","Ejecución de capacitación en gestión de riesgos de desastres","Totalmente en Línea",0]

{"sheet":"RESUMEN","index":8,"n_rows":19,"n_cols":25,"rows_kept":19,"cut":false,"hidden":false,"merged":[[1,0,2,0],[1,1,2,1],[1,2,2,2],[1,3,2,3],[1,4,2,4],[1,9,1,10],[1,11,1,12],[1,13,2,13],[0,2,0,6],[0,7,0,12],[1,5,2,5],[1,6,2,6],[1,7,1,8]]}
[null,null,"BÁSICOS",null,null,null,null,"ADICIONALES"]
["ID trámite","Nombre del trámite","Demanda","Quejas","Costo para administración","Tiempo de respuesta","Canal de atención","Necesidades ciudadanas",null,"Susceptibilidad a corrupción",null,"Volumen de devoluciones",null,"PUNTAJE TOTAL"]
[null,null,null,null,null,null,null,"Criterio","Puntuación","Criterio","Puntuación","Criterio","Puntuación",null,null,null,null,null,null,null,"demanda",0,3,6,10]
["SGR-025-01-04 ","Disolución y liquidación de la Organizacion Social en Gestión de Riesgos",0,0,10,30,10,"NO",{"$f":"IF(H4=\"SI\",5,0)","v":0},"NO",{"$f":"IF(J4=\"SI\",10,0)","v":0},"NO",{"$f":"IF(L4=\"SI\",5,0)","v":0},{"$f":"SUM(C4:G4,I4,K4,M4)","v":50},null,null,null,null,null,null,"quejas",0,4,10]
["SGR-025-01-02","Inclusión y exclusión de miembros de organizaciones sociales en gestión de riesgos",0,0,5,30,10,"NO",{"$f":"IF(H5=\"SI\",5,0)","v":0},"NO",{"$f":"IF(J5=\"SI\",10,0)","v":0},"NO",{"$f":"IF(L5=\"SI\",5,0)","v":0},{"$f":"SUM(C5:G5,I5,K5,M5)","v":45},null,null,null,null,null,null,"cpa",5,10,20]
["SGR-025-01-03","Registro de directivas de la organización social en Gestión de Riesgos",3,0,5,30,10,"NO",0,"NO",0,"NO",0,48,null,null,null,null,null,null,"tr",0,30]
["SGR-022-01-01","Generación de mapa de amenazas",3,0,20,30,10,"NO",0,"NO",0,"NO",0,63,null,null,null,null,null,null,"ca",0,10]
["SGR-012-02-01","Información pública del Servicio Nacional de Gestión de Riesgos y Emergencias modalidad presencial",3,0,5,30,10,"NO",0,"NO",0,"NO",0,48,null,null,null,null,null,null,null,"SI","NO"]
["SGR-032-02-01 ","Información de gestión de riesgos en línea",3,10,10,0,0,"NO",0,"NO",0,"NO",0,23]
["SGR-032-01-01 ","Información de gestión de riesgos modalidad presencial",6,0,10,30,10,"NO",0,"NO",0,"NO",0,56]
["SGR-025-01-01 ","Aprobación del estatuto y otorgamiento de la personalidad jurídica como Organizacion Social en Gestión de Riesgos",6,0,10,30,10,"NO",0,"NO",0,"NO",0,56]
["SNGRE-024-01-01 ","Ejecución de asesoría técnica para simulaciones y simulacros por eventos peligrosos relacionados con la gestión del riesgo de desastres",6,0,20,30,10,"NO",0,"NO",0,"NO",0,66]
["SGR-032-03-01 ","Información de gestión de riesgos, modalidad no presencial",6,0,10,30,10,"NO",0,"NO",0,"NO",0,56]
["SNGRE-028-01-01 ","Coordinación para la participación del voluntariado de protección civil en eventos de concentración masiva",10,0,20,30,10,"NO",0,"NO",0,"NO",0,70]
["SGR-012-01-01","Información pública del Servicio Nacional de Gestión de Riesgos y Emergencias en línea",10,0,5,30,0,"NO",0,"NO",0,"NO",0,45]
["SNGRE-002-01-01 ","Acceso al análisis de amenaza o riesgo aceptable por eventos peligrosos relacionados con la gestión del riesgo de desastres en territorio nacional",10,0,20,30,10,"NO",0,"NO",0,"NO",0,70]
["SNGRE-016-01-01 ","Emisión de información de eventos peligrosos relacionados a la gestión del riesgo de desastres en territorio nacional",10,0,20,30,10,"NO",0,"NO",0,"NO",0,70]
["SGR-030-01-01 ","Inscripción de la ciudadanía para ingreso al Voluntariado de Protección Civil del Servicio Nacional de Gestión de Riesgos y Emergencias",10,0,5,30,10,"NO",0,"NO",0,"NO",0,55]
["SNGRE-006-01-01","Ejecución de capacitación en gestión de riesgos de desastres",10,0,5,30,0,"NO",0,"NO",0,"NO",0,45]